fUSD/lending_fUSD_20250620
["ID","MTS","AMOUNT","RATE_DAILY","PERIOD"]
[366734914,1750425038956,-490.0,0.00025736,4]
[366734916,1750425038966,-490.0,0.00025736,4]
[366734918,1750425038975,-490.0,0.00025736,4]
[366734920,1750425038985,-490.0,0.00025736,4]
[366734922,1750425038995,-500.0,0.00025736,4]
[366734924,1750425039004,-490.0,0.00025736,4]
[366734926,1750425039014,-490.0,0.00025736,4]
[366734928,1750425039024,-490.0,0.00025736,4]
[366734930,1750425039034,-490.0,0.00025736,4]
[366734932,1750425039044,-490.0,0.00025736,4]
[366734934,1750425039054,-490.0,0.00025736,4]
[366734936,1750425039065,-490.0,0.00025736,4]
[366734939,1750425039076,-490.0,0.00025736,4]
[366734941,1750425039086,-490.0,0.00025736,4]
[366734942,1750425039096,-490.0,0.00025736,4]
[366734944,1750425039106,-490.0,0.00025736,4]
[366734946,1750425039116,-490.0,0.00025736,4]
[366734947,1750425039127,-490.0,0.00025736,4]
[366734949,1750425039137,-490.0,0.00025736,4]
[366734950,1750425039148,-490.0,0.00025736,4]
[366734952,1750425039158,-490.0,0.00025736,4]
[366734954,1750425039168,-917.14,0.00025736,4]
[366734956,1750425039178,-490.0,0.00025736,4]
[366734957,1750425039188,-490.0,0.00025736,4]
[366734959,1750425039198,-490.0,0.00025736,4]
[366734960,1750425039207,-490.0,0.00025736,4]
[366734962,1750425039217,-490.0,0.00025736,4]
[366734964,1750425039227,-490.0,0.00025736,4]
[366734965,1750425039236,-549.92,0.00025736,4]
[366734967,1750425039246,-925.37,0.00025736,4]
[366734968,1750425039256,-490.0,0.00025736,4]
[366734970,1750425039265,-490.0,0.00025736,4]
[366734972,1750425039275,-715.01,0.00025736,4]
[366734973,1750425039285,-490.0,0.00025736,4]
[366734975,1750425039295,-490.0,0.00025736,4]
[366734977,1750425039304,-490.0,0.00025736,4]
[366734978,1750425039317,-490.0,0.00025736,4]
[366734980,1750425039326,-490.0,0.00025736,4]
[366734982,1750425039336,-490.0,0.00025736,4]
[366734984,1750425039345,-1368.22,0.00025736,4]
[366734985,1750425039355,-490.0,0.00025736,4]
[366734987,1750425039365,-490.0,0.00025736,4]
[366734989,1750425039375,-490.0,0.00025736,4]
[366734990,1750425039384,-490.0,0.00025736,4]
[366734992,1750425039394,-490.0,0.00025736,4]
[366734994,1750425039404,-490.0,0.00025736,4]
[366734995,1750425039413,-490.0,0.00025736,4]
[366734997,1750425039423,-490.0,0.00025736,4]
[366734998,1750425039432,-490.0,0.00025736,4]
[366735000,1750425039442,-490.0,0.00025736,4]
[366735002,1750425039451,-490.0,0.00025736,4]
[366735004,1750425039461,-490.0,0.00025736,4]
[366735005,1750425039472,-821.26,0.00025736,4]
[366735007,1750425039482,-490.0,0.00025736,4]
[366735009,1750425039492,-490.0,0.00025736,4]
[366735010,1750425039502,-490.0,0.00025736,4]
[366735012,1750425039512,-633.65,0.00025736,4]
[366735014,1750425039521,-490.0,0.00025736,4]
[366735016,1750425039531,-1787.03,0.00025736,4]
[366735018,1750425039542,-614.44,0.00025736,4]
[366735020,1750425039553,-490.0,0.00025736,4]
[366735022,1750425039563,-490.0,0.00025736,4]
[366735024,1750425039573,-490.0,0.00025736,4]
[366735025,1750425039583,-490.0,0.00025736,4]
[366735027,1750425039597,-490.0,0.00025736,4]
[366735029,1750425039607,-490.0,0.00025736,4]
[366735031,1750425039617,-500.08,0.00025736,4]
[366735032,1750425039627,-490.0,0.00025736,4]
[366735034,1750425039637,-490.0,0.00025736,4]
[366735036,1750425039647,-687.9,0.00025736,4]
[366735038,1750425039657,-490.0,0.00025736,4]
[366735040,1750425039670,-1230.49,0.00025736,4]
[366735042,1750425039682,-490.0,0.00025736,4]
[366735043,1750425039692,-847.19,0.00025736,4]
[366735045,1750425039702,-490.0,0.00025736,4]
[366735047,1750425039711,-490.0,0.00025736,4]
[366735048,1750425039721,-490.0,0.00025736,4]
[366735050,1750425039732,-490.57,0.00025736,4]
[366735052,1750425039742,-490.0,0.00025736,4]
[366735054,1750425039752,-2787.52,0.00025736,4]
[366735056,1750425039762,-490.0,0.00025736,4]
[366735059,1750425039771,-490.0,0.00025736,4]
[366735062,1750425039782,-1151.55,0.00025736,4]
[366735065,1750425039792,-490.0,0.00025736,4]
[366735067,1750425039802,-490.0,0.00025736,4]
[366735070,1750425039813,-1096.2,0.00025736,4]
[366735073,1750425039823,-490.0,0.00025736,4]
[366735076,1750425039834,-490.0,0.00025736,4]
[366735078,1750425039844,-490.0,0.00025736,4]
[366735080,1750425039854,-922.72,0.00025736,4]
[366735082,1750425039863,-490.0,0.00025736,4]
[366735083,1750425039872,-1925.21,0.00025736,4]
[366735085,1750425039883,-494.61227858,0.00025736,4]
[366735087,1750425039893,-490.0,0.00025736,4]
[366735089,1750425039903,-490.0,0.00025736,4]
[366735091,1750425039913,-544.45,0.00025736,4]
[366735092,1750425039924,-490.0,0.00025736,4]
[366735094,1750425039933,-490.0,0.00025736,4]
[366735096,1750425039943,-490.0,0.00025736,4]
[366735098,1750425039953,-490.0,0.00025736,4]
[366735099,1750425039963,-490.0,0.00025736,4]
[366735101,1750425039973,-490.0,0.00025736,4]
[366735103,1750425039983,-490.0,0.00025736,4]
[366735105,1750425039993,-490.0,0.00025736,4]
[366735106,1750425040004,-4584.33,0.00025736,4]
[366735108,1750425040013,-995.09,0.00025736,4]
[366735110,1750425040023,-557.77,0.00025736,4]
[366735112,1750425040033,-490.0,0.00025736,4]
[366735113,1750425040043,-490.0,0.00025736,4]
[366735115,1750425040054,-610.43,0.00025736,4]
[366735117,1750425040065,-490.0,0.00025736,4]
[366735119,1750425040075,-490.0,0.00025736,4]
[366735121,1750425040086,-790.02,0.00025736,4]
[366735122,1750425040096,-490.0,0.00025736,4]
[366735124,1750425040105,-490.0,0.00025736,4]
[366735126,1750425040115,-490.0,0.00025736,4]
[366735128,1750425040125,-490.0,0.00025736,4]
[366735129,1750425040135,-490.0,0.00025736,4]
[366735131,1750425040145,-151.0,0.00025736,7]
[366735133,1750425040154,-490.0,0.00025736,4]
[366735135,1750425040164,-490.0,0.00025736,4]
[366735137,1750425040174,-490.0,0.00025736,4]
[366735138,1750425040184,-490.0,0.00025736,4]
[366735140,1750425040194,-490.0,0.00025736,4]
[366735142,1750425040204,-490.0,0.00025736,4]
[366735144,1750425040214,-491.73415499,0.00025736,4]
[366735145,1750425040224,-490.0,0.00025736,4]
[366735147,1750425040234,-490.0,0.00025736,4]
[366735149,1750425040244,-490.0,0.00025736,4]
[366735151,1750425040254,-490.0,0.00025736,4]
[366735152,1750425040263,-490.0,0.00025737,4]
[366735154,1750425040273,-490.0,0.00025737,4]
[366735156,1750425040283,-490.0,0.00025737,4]
[366735158,1750425040292,-490.0,0.00025737,4]
[366735160,1750425040303,-490.0,0.00025737,4]
[366735162,1750425040314,-490.0,0.00025737,4]
[366735164,1750425040323,-168.30061177,0.00025737,2]
[366735166,1750425040333,-218.67905331,0.00025737,2]
[366735168,1750425040343,-490.0,0.00025737,4]
[366735170,1750425040353,-500.0,0.00025737,4]
[366735172,1750425040364,-500.0,0.00025737,4]
[366735174,1750425040374,-500.0,0.00025737,4]
[366735176,1750425040384,-3171.46549,0.00025737,2]
[366735178,1750425040395,-500.0,0.00025773,2]
[366735180,1750425040406,-168.0,0.00025778,2]
[366735182,1750425040415,-500.0,0.00025788,4]
[366735184,1750425040425,-24184.13231145,0.000258,2]
[366735186,1750425040435,-1587.568,0.000258,11]
[366735189,1750425040446,-1100.0,0.000258,9]
[366735191,1750425040456,-151.0,0.000258,7]
[366735193,1750425040466,-500.0,0.00025822,2]
[366735195,1750425040475,-170.15,0.00025843,11]
[366735196,1750425040485,-1633.0,0.00025853,2]
[366735197,1750425040495,-399.57889482,0.00025866,14]
[366735198,1750425040505,-159.92259366,0.000259,2]
[366735199,1750425040515,-1700.0,0.000259,9]
[366735200,1750425040525,-600.0,0.00025918,4]
[366735201,1750425040536,-150.0,0.00025961,2]
[366735202,1750425040546,-150.0,0.00025961,2]
[366735203,1750425040557,-236.30738567,0.00025961,2]
[366735204,1750425040567,-201.98796862,0.00025961,2]
[366735205,1750425040577,-150.0,0.00025961,2]
[366735206,1750425040589,-150.0,0.00025961,2]
[366735207,1750425040600,-500.0,0.00025961,2]
[366735208,1750425040610,-150.0,0.00025961,2]
[366735209,1750425040620,-150.0,0.00025961,2]
[366735210,1750425040630,-150.0,0.00025961,2]
[366735211,1750425040640,-150.0,0.00025961,2]
[366735212,1750425040650,-500.0,0.00025961,2]
[366735213,1750425040661,-150.0,0.00025961,2]
[366735214,1750425040672,-150.0,0.00025961,2]
[366735215,1750425040682,-150.0,0.00025961,2]
[366735216,1750425040692,-150.0,0.00025961,2]
[366735217,1750425040703,-150.0,0.00025961,2]
[366735218,1750425040713,-150.0,0.00025961,2]
[366735219,1750425040723,-215.0738,0.00025977,2]
[366735220,1750425040733,-150.0,0.00025988,2]
[366735221,1750425040743,-150.0,0.00025988,2]
[366735223,1750425040753,-150.0,0.00025988,2]
[366735224,1750425040764,-150.92398456,0.00025988,2]
[366735251,1750425041015,-500.0,0.00025988,2]
[366735254,1750425041039,-150.0,0.00025988,2]
[366735256,1750425041050,-150.0,0.00025988,2]
[366735258,1750425041060,-500.0,0.00025988,2]
[366735260,1750425041069,-150.0,0.00025988,2]
[366735262,1750425041079,-290.28026856,0.00025988,2]
[366735264,1750425041089,-150.0,0.00025988,2]
[366735266,1750425041099,-150.0,0.00025988,2]
[366735269,1750425041109,-150.0,0.00025993,2]
[366735271,1750425041118,-356.99975788,0.00025998,2]
[366735272,1750425041128,-1818.0,0.00025999,2]
[366735275,1750425041138,-521.72,0.00025999,4]
[366735277,1750425041148,-500.0,0.00025999,4]
[366735279,1750425041157,-500.0,0.00025999,4]
[366735281,1750425041167,-500.0,0.00025999,4]
[366735283,1750425041177,-151.0,0.00025999,7]
[366735285,1750425041186,-151.0,0.00025999,7]
[366735287,1750425041196,-150.0,0.00025999,2]
[366735289,1750425041206,-500.0,0.00025999,4]
[366735291,1750425041216,-10601.6474963,0.00025999,3]
[366735293,1750425041226,-8453.30860743,0.00026,4]
[366735327,1750425041547,-3802.31129298,0.00026,4]
[366735329,1750425041557,-6793.68870702,0.00026,4]
[366735331,1750425041569,-692.55818729,0.00026,4]
[366735334,1750425041585,-2250.10209315,0.00026,4]
[366735366,1750425041886,-1504.23768687,0.00026,4]
[366735371,1750425041920,-605.77934797,0.00026,4]
[366735373,1750425041933,-751.90615314,0.00026,4]
[366735382,1750425042009,-490.0,0.00025735,4]
[366735384,1750425042019,-360.17135843,0.00026,4]
[366735387,1750425042031,-1061.649059,0.00026,4]
[366735389,1750425042049,-29787.40866198,0.00026,4]
[366735392,1750425042066,-51262.88125876,0.00026,4]
[366735495,1750425043023,-490.0,0.00025735,4]
[366735497,1750425043034,-1000.0,0.000259,2]
[366735499,1750425043043,-271544.3249278,0.00026,4]
[366735509,1750425043132,-742.15059484,0.00026,4]
[366735511,1750425043144,-687.9546815,0.00026,4]
[366735514,1750425043155,-903.93788838,0.00026,4]
[366735518,1750425043187,-295452.58887651,0.00026,4]
[366735520,1750425043197,-159024.712444,0.00026,3]
[366735522,1750425043206,-151.0,0.00026,7]
[366735524,1750425043217,-152.042463,0.00026,7]
[366735526,1750425043226,-151.520417,0.00026,7]
[366735528,1750425043237,-151.0,0.00026,7]
[366735530,1750425043246,-285.244617,0.00026,7]
[366735532,1750425043257,-151.0,0.00026,7]
[366735534,1750425043266,-151.0,0.00026,7]
[366735536,1750425043276,-151.0,0.00026,7]
[366735538,1750425043286,-153.023233,0.00026,7]
[366735540,1750425043296,-151.0,0.00026,7]
[366735542,1750425043306,-151.0,0.00026,7]
[366735544,1750425043316,-151.0,0.00026,7]
[366735546,1750425043326,-151.0,0.00026,7]
[366735548,1750425043335,-151.0,0.00026,7]
[366735550,1750425043345,-151.0,0.00026,7]
[366735552,1750425043354,-360.247694,0.00026,7]
[366735554,1750425043364,-151.0,0.00026,7]
[366735556,1750425043375,-360.247694,0.00026,7]
[366735558,1750425043384,-151.0,0.00026,7]
[366735560,1750425043394,-151.0,0.00026,7]
[366735562,1750425043404,-269.816138,0.00026,7]
[366735564,1750425043414,-269.816138,0.00026,7]
[366735566,1750425043424,-151.0,0.00026,7]
[366735568,1750425043434,-151.0,0.00026,7]
[366735570,1750425043444,-1752.0,0.00026,2]
[366735572,1750425043454,-151.0,0.00026,7]
[366735574,1750425043464,-151.0,0.00026,7]
[366735576,1750425043474,-293.183102,0.00026,7]
[366735578,1750425043484,-293.183102,0.00026,7]
[366735581,1750425043495,-151.0,0.00026,7]
[366735583,1750425043505,-151.0,0.00026,7]
[366735585,1750425043514,-151.0,0.00026,7]
[366735587,1750425043524,-152.508377,0.00026,7]
[366735588,1750425043534,-152.508377,0.00026,7]
[366735590,1750425043543,-490.0,0.00026009,4]
[366735592,1750425043553,-376.80615616,0.00026009,4]
[366735594,1750425043563,-490.0,0.00026009,4]
[366735597,1750425043573,-490.0,0.00026009,4]
[366735599,1750425043583,-185.3,0.00026009,4]
[366735601,1750425043597,-242.43,0.00026009,4]
[366735603,1750425043606,-383.57,0.00026009,4]
[366735605,1750425043616,-490.0,0.00026009,4]
[366735607,1750425043627,-490.0,0.00026009,4]
[366735609,1750425043636,-490.0,0.00026009,4]
[366735611,1750425043647,-505.48100314,0.00026009,4]
[366735613,1750425043657,-490.0,0.00026009,4]
[366735615,1750425043670,-490.0,0.00026009,4]
[366735617,1750425043681,-490.0,0.00026009,4]
[366735619,1750425043691,-197.74,0.00026009,4]
[366735621,1750425043701,-490.0,0.00026009,4]
[366735623,1750425043711,-355.8,0.00026009,4]
[366735625,1750425043721,-1082.4,0.00026009,4]
[366735627,1750425043730,-490.0,0.00026009,4]
[366735629,1750425043740,-490.0,0.00026009,4]
[366735631,1750425043750,-189.69,0.00026009,4]
[366735633,1750425043761,-490.0,0.00026009,4]
[366735635,1750425043771,-490.0,0.00026009,4]
[366735637,1750425043781,-490.0,0.00026009,4]
[366735639,1750425043791,-490.0,0.00026009,4]
[366735641,1750425043801,-490.0,0.00026009,4]
[366735643,1750425043810,-616.37,0.00026009,4]
[366735645,1750425043820,-490.0,0.00026009,4]
[366735647,1750425043830,-204.61956627,0.00026009,4]
[366735649,1750425043839,-582.24,0.00026009,4]
[366735651,1750425043849,-490.0,0.00026009,4]
[366735653,1750425043859,-761.34,0.00026009,4]
[366735655,1750425043868,-490.0,0.00026009,4]
[366735657,1750425043878,-490.0,0.00026009,4]
[366735660,1750425043946,-217.46310547,0.00026009,4]
[366735661,1750425043956,-490.0,0.00026009,4]
[366735662,1750425043965,-458.37,0.00026009,4]
[366735663,1750425043974,-521.07,0.00026009,4]
[366735664,1750425043983,-490.0,0.00026009,4]
[366735665,1750425043993,-490.0,0.00026009,4]
[366735666,1750425044002,-1662.22,0.00026009,4]
[366735667,1750425044012,-490.0,0.00026009,4]
[366735668,1750425044021,-490.0,0.00026009,4]
[366735669,1750425044032,-490.0,0.00026009,4]
[366735670,1750425044041,-490.0,0.00026009,4]
[366735672,1750425044052,-836.33,0.00026009,4]
[366735673,1750425044061,-500.0,0.00026009,4]
[366735674,1750425044071,-490.0,0.00026009,4]
[366735675,1750425044080,-490.0,0.00026009,4]
[366735677,1750425044089,-490.0,0.00026009,4]
[366735679,1750425044100,-235.22,0.00026009,4]
[366735681,1750425044109,-490.0,0.00026009,4]
[366735683,1750425044119,-490.0,0.00026009,4]
[366735685,1750425044129,-488.27955624,0.00026009,4]
[366735687,1750425044138,-490.0,0.00026009,4]
[366735689,1750425044147,-490.0,0.00026009,4]
[366735691,1750425044156,-512.54924328,0.00026009,4]
[366735693,1750425044166,-490.0,0.00026009,4]
[366735695,1750425044175,-490.0,0.00026009,4]
[366735697,1750425044185,-490.0,0.00026009,4]
[366735699,1750425044194,-490.0,0.00026009,4]
[366735701,1750425044204,-447.62,0.00026009,4]
[366735703,1750425044213,-490.0,0.00026009,4]
[366735705,1750425044223,-490.0,0.00026009,4]
[366735707,1750425044232,-490.0,0.00026009,4]
[366735709,1750425044242,-490.0,0.00026009,4]
[366735710,1750425044251,-490.0,0.00026009,4]
[366735712,1750425044260,-384.61725797,0.00026009,4]
[366735714,1750425044269,-490.0,0.00026009,4]
[366735716,1750425044278,-490.0,0.00026009,4]
[366735718,1750425044288,-490.0,0.00026009,4]
[366735720,1750425044298,-490.0,0.00026009,4]
[366735722,1750425044307,-490.0,0.00026009,4]
[366735724,1750425044317,-490.0,0.00026009,4]
[366735726,1750425044326,-490.0,0.00026009,4]
[366735728,1750425044336,-490.0,0.00026009,4]
[366735730,1750425044345,-555.74,0.00026009,4]
[366735732,1750425044355,-490.0,0.00026009,4]
[366735734,1750425044366,-168.85,0.00026009,4]
[366735736,1750425044376,-502.26,0.00026009,4]
[366735738,1750425044386,-490.0,0.00026009,4]
[366735740,1750425044395,-329.96,0.00026009,4]
[366735742,1750425044405,-284.14,0.00026009,4]
[366735744,1750425044414,-590.9,0.00026009,4]
[366735746,1750425044424,-490.0,0.00026009,4]
[366735748,1750425044433,-464.23889366,0.00026009,4]
[366735750,1750425044443,-490.0,0.00026009,4]
[366735752,1750425044453,-490.0,0.00026009,4]
[366735754,1750425044462,-155.84472599,0.00026009,4]
[366735756,1750425044471,-490.0,0.00026009,4]
[366735759,1750425044492,-490.0,0.00026009,4]
[366735761,1750425044506,-236.18,0.00026009,4]
[366735763,1750425044516,-490.0,0.00026009,4]
[366735765,1750425044526,-490.0,0.00026009,4]
[366735767,1750425044537,-2028.97,0.00026009,4]
[366735769,1750425044547,-490.0,0.00026009,4]
[366735771,1750425044557,-506.8,0.00026009,4]
[366735773,1750425044568,-490.0,0.00026009,4]
[366735775,1750425044578,-490.0,0.00026009,4]
[366735777,1750425044588,-490.0,0.00026009,4]
[366735779,1750425044599,-490.0,0.00026009,4]
[366735781,1750425044609,-490.0,0.00026009,4]
[366735783,1750425044619,-490.0,0.00026009,4]
[366735785,1750425044630,-490.0,0.00026009,4]
[366735788,1750425044641,-939.95,0.00026009,4]
[366735789,1750425044651,-490.0,0.00026009,4]
[366735792,1750425044662,-490.0,0.00026009,4]
[366735794,1750425044672,-219.7,0.00026009,4]
[366735796,1750425044682,-490.0,0.00026009,4]
[366735798,1750425044692,-1297.1,0.00026009,4]
[366735800,1750425044703,-490.0,0.00026009,4]
[366735802,1750425044712,-490.0,0.00026009,4]
[366735804,1750425044722,-490.0,0.00026009,4]
[366735806,1750425044731,-490.0,0.00026009,4]
[366735808,1750425044741,-490.0,0.00026009,4]
[366735810,1750425044750,-1628.15,0.00026009,4]
[366735812,1750425044760,-16090.52,0.00026009,4]
[366735814,1750425044772,-490.0,0.00026009,4]
[366735816,1750425044781,-490.0,0.00026009,4]
[366735817,1750425044791,-490.0,0.00026009,4]
[366735819,1750425044802,-490.0,0.00026009,4]
[366735821,1750425044811,-490.0,0.00026009,4]
[366735823,1750425044821,-490.0,0.00026009,4]
[366735825,1750425044831,-490.0,0.00026009,4]
[366735827,1750425044841,-490.0,0.00026009,4]
[366735829,1750425044851,-490.0,0.00026009,4]
[366735832,1750425044861,-490.0,0.00026009,4]
[366735834,1750425044872,-490.0,0.00026009,4]
[366735836,1750425044882,-490.0,0.00026009,4]
[366735838,1750425044891,-3649.34,0.00026009,4]
[366735840,1750425044902,-334.45,0.00026009,4]
[366735842,1750425044912,-490.0,0.00026009,4]
[366735844,1750425044921,-490.0,0.00026009,4]
[366735847,1750425044938,-490.0,0.00026009,4]
[366735849,1750425044948,-490.0,0.00026009,4]
[366735851,1750425044958,-490.0,0.00026009,4]
[366735853,1750425044968,-643.98,0.00026009,4]
[366735855,1750425044977,-593.25,0.00026009,4]
[366735857,1750425044987,-490.0,0.00026009,4]
[366735859,1750425044997,-490.0,0.00026009,4]
[366735861,1750425045007,-558.08,0.00026009,4]
[366735863,1750425045017,-490.0,0.00026009,4]
[366735865,1750425045027,-490.0,0.00026009,4]
[366735867,1750425045037,-490.0,0.00026009,4]
[366735869,1750425045047,-490.0,0.00026009,4]
[366735871,1750425045056,-490.0,0.00026009,4]
[366735873,1750425045068,-248.08,0.00026009,4]
[366735875,1750425045079,-490.0,0.00026009,4]
[366735877,1750425045088,-613.34,0.00026009,4]
[366735879,1750425045098,-730.32,0.00026009,4]
[366735881,1750425045108,-1933.21,0.00026009,4]
[366735883,1750425045118,-1122.74,0.00026009,4]
[366735886,1750425045127,-490.0,0.00026009,4]
[366735888,1750425045137,-2397.6,0.00026009,4]
[366735890,1750425045147,-490.0,0.00026009,4]
[366735892,1750425045156,-490.0,0.00026009,4]
[366735894,1750425045166,-490.0,0.00026009,4]
[366735896,1750425045176,-490.0,0.00026009,4]
[366735898,1750425045186,-490.0,0.00026009,4]
[366735900,1750425045195,-519.24,0.00026009,4]
[366735902,1750425045205,-490.0,0.00026009,4]
[366735904,1750425045215,-490.0,0.00026009,4]
[366735906,1750425045225,-490.0,0.00026009,4]
[366735908,1750425045235,-490.0,0.00026009,4]
[366735910,1750425045245,-490.0,0.00026009,4]
[366735912,1750425045255,-490.0,0.00026009,4]
[366735914,1750425045265,-490.0,0.00026009,4]
[366735916,1750425045274,-490.0,0.00026009,4]
[366735918,1750425045284,-490.0,0.00026009,4]
[366735920,1750425045294,-1227.78,0.00026009,4]
[366735922,1750425045304,-490.0,0.00026009,4]
[366735924,1750425045314,-490.0,0.00026009,4]
[366735926,1750425045323,-490.0,0.00026009,4]
[366735928,1750425045334,-551.34,0.00026009,4]
[366735930,1750425045344,-490.0,0.00026009,4]
[366735932,1750425045353,-522.59,0.00026009,4]
[366735934,1750425045363,-233.5,0.00026009,4]
[366735936,1750425045380,-151.0,0.00026009,7]
[366735938,1750425045389,-490.0,0.00026009,4]
[366735940,1750425045400,-490.0,0.00026009,4]
[366735942,1750425045410,-582.66,0.00026009,4]
[366735945,1750425045420,-490.0,0.00026009,4]
[366735947,1750425045430,-594.47,0.00026009,4]
[366735949,1750425045440,-490.0,0.00026009,4]
[366735951,1750425045450,-490.0,0.00026009,4]
[366735953,1750425045460,-490.0,0.00026009,4]
[366735955,1750425045469,-492.32452562,0.00026009,4]
[366735956,1750425045480,-490.0,0.00026009,4]
[366735959,1750425045490,-490.0,0.00026009,4]
[366735961,1750425045500,-490.0,0.00026009,4]
[366735963,1750425045510,-380.24,0.00026009,4]
[366735965,1750425045520,-172.22,0.00026009,4]
[366735967,1750425045530,-490.0,0.00026009,4]
[366735969,1750425045539,-929.32,0.00026009,4]
[366735971,1750425045549,-616.11,0.00026009,4]
[366735973,1750425045560,-490.0,0.00026009,4]
[366735975,1750425045570,-151.0,0.00026009,7]
[366735977,1750425045580,-490.0,0.00026009,4]
[366735979,1750425045594,-880.22,0.00026009,4]
[366735981,1750425045606,-151.0,0.00026009,7]
[366735984,1750425045616,-490.0,0.00026009,4]
[366735986,1750425045625,-490.0,0.00026009,4]
[366735988,1750425045638,-747.33,0.00026009,4]
[366735990,1750425045647,-699.01,0.00026009,4]
[366735992,1750425045657,-490.0,0.00026009,4]
[366735994,1750425045668,-490.0,0.00026009,4]
[366735996,1750425045678,-490.0,0.00026009,4]
[366735998,1750425045688,-622.69,0.00026009,4]
[366736000,1750425045698,-490.0,0.00026009,4]
[366736002,1750425045707,-3469.346953,0.00026009,7]
[366736004,1750425045717,-490.0,0.00026009,4]
[366736006,1750425045727,-490.0,0.00026009,4]
[366736008,1750425045738,-3469.346953,0.00026009,7]
[366736010,1750425045747,-490.0,0.00026009,4]
[366736012,1750425045758,-1104.09,0.00026009,2]
[366736014,1750425045768,-168.17,0.00026009,4]
[366736016,1750425045778,-490.0,0.00026009,4]
[366736018,1750425045788,-4453.74,0.00026009,4]
[366736020,1750425045798,-490.0,0.00026009,4]
[366736022,1750425045808,-416.44,0.00026009,4]
[366736025,1750425045825,-576.81,0.00026009,4]
[366736027,1750425045835,-636.41,0.00026009,4]
[366736029,1750425045846,-490.0,0.00026009,4]
[366736031,1750425045859,-490.0,0.00026009,4]
[366736033,1750425045869,-490.0,0.00026009,4]
[366736035,1750425045879,-1166.78,0.00026009,4]
[366736037,1750425045890,-490.0,0.00026009,4]
[366736039,1750425045899,-490.0,0.00026009,4]
[366736041,1750425045909,-490.0,0.00026009,2]
[366736043,1750425045920,-490.0,0.00026009,4]
[366736045,1750425045930,-510.0,0.00026009,4]
[366736047,1750425045940,-490.0,0.00026009,4]
[366736049,1750425045950,-580.87,0.00026009,4]
[366736051,1750425045960,-490.0,0.00026009,4]
[366736053,1750425045970,-490.0,0.00026009,4]
[366736056,1750425045982,-490.0,0.00026009,4]
[366736058,1750425045992,-490.0,0.00026009,4]
[366736060,1750425046002,-490.0,0.0002601,4]
[366736062,1750425046011,-490.0,0.0002601,4]
[366736064,1750425046023,-490.0,0.0002601,4]
[366736066,1750425046034,-490.0,0.0002601,4]
[366736068,1750425046044,-490.0,0.0002601,4]
[366736070,1750425046055,-490.0,0.0002601,4]
[366736072,1750425046067,-248.57,0.0002601,4]
[366736074,1750425046077,-490.0,0.0002601,4]